[Event "Live Chess"]
[Site "Chess.com"]
[Date "2023.05.20"]
[Round "-"]
[White "AbilifyXL"]
[Black "xx_blindpuffin_xx"]
[Result "0-1"]
[WhiteElo "1945"]
[BlackElo "2214"]
[TimeControl "300"]
[EndTime "12:25:43 PDT"]
[Termination "xx_blindpuffin_xx won on time"]

1. d4 {[%clk 0:04:59.3]} 1... d5 {[%clk 0:04:59.2]} 2. c4 {[%clk 0:04:58.4]}
2... e6 {[%clk 0:04:58.4]} 3. cxd5 {[%clk 0:04:53.7]} 3... exd5 {[%clk
0:04:57.3]} 4. Nc3 {[%clk 0:04:53.6]} 4... c6 {[%clk 0:04:56.5]} 5. Nf3 {[%clk
0:04:53.1]} 5... Bd6 {[%clk 0:04:55.7]} 6. Bg5 {[%clk 0:04:52.3]} 6... Ne7
{[%clk 0:04:55]} 7. e3 {[%clk 0:04:50.9]} 7... O-O {[%clk 0:04:53.2]} 8. Bd3
{[%clk 0:04:49]} 8... f6 {[%clk 0:04:52.8]} 9. Bh4 {[%clk 0:04:48]} 9... Bf5
{[%clk 0:04:52.3]} 10. O-O {[%clk 0:04:46.6]} 10... a5 {[%clk 0:04:51.2]} 11.
Rc1 {[%clk 0:04:45.5]} 11... Na6 {[%clk 0:04:50.1]} 12. a3 {[%clk 0:04:42.6]}
12... Re8 {[%clk 0:04:45.8]} 13. Bg3 {[%clk 0:04:41.6]} 13... Bxg3 {[%clk
0:04:43.9]} 14. hxg3 {[%clk 0:04:41.5]} 14... Qd7 {[%clk 0:04:41.8]} 15. Qc2
{[%clk 0:04:40.8]} 15... Nc7 {[%clk 0:04:36.8]} 16. Nh4 {[%clk 0:04:36.8]} 16...
Bxd3 {[%clk 0:04:34.7]} 17. Qxd3 {[%clk 0:04:35.9]} 17... Ne6 {[%clk 0:04:28.1]}
18. Nf3 {[%clk 0:04:24.9]} 18... a4 {[%clk 0:04:20.9]} 19. Qc2 {[%clk
0:04:21.9]} 19... b5 {[%clk 0:04:19.8]} 20. Rfe1 {[%clk 0:04:20.5]} 20... Rac8
{[%clk 0:03:56.9]} 21. Qd3 {[%clk 0:04:10.9]} 21... g6 {[%clk 0:03:40.2]} 22.
Rcd1 {[%clk 0:04:02.1]} 22... Nf5 {[%clk 0:03:38.9]} 23. e4 {[%clk 0:03:45.4]}
23... dxe4 {[%clk 0:03:38.8]} 24. Nxe4 {[%clk 0:03:44.3]} 24... Kf7 {[%clk
0:03:27.4]} 25. Qc3 {[%clk 0:03:23.5]} 25... Nc7 {[%clk 0:02:58.7]} 26. d5
{[%clk 0:03:09.6]} 26... Nxd5 {[%clk 0:02:57.5]} 27. Rxd5 {[%clk 0:03:08.2]}
27... cxd5 {[%clk 0:02:54.4]} 28. Qxf6+ {[%clk 0:03:05.8]} 28... Kg8 {[%clk
0:02:53.4]} 29. Neg5 {[%clk 0:02:55]} 29... Rxe1+ {[%clk 0:02:50.5]} 30. Nxe1
{[%clk 0:02:54.4]} 30... Rf8 {[%clk 0:02:42.2]} 31. Qc3 {[%clk 0:02:48.1]} 31...
d4 {[%clk 0:02:35.2]} 32. Qd3 {[%clk 0:02:46.2]} 32... Re8 {[%clk 0:02:25.1]}
33. Ngf3 {[%clk 0:02:44.1]} 33... Qd5 {[%clk 0:02:21.5]} 34. Nc2 {[%clk
0:02:42.1]} 34... Rd8 {[%clk 0:02:14.7]} 35. g4 {[%clk 0:02:32.7]} 35... Nd6
{[%clk 0:02:04.1]} 36. Nfxd4 {[%clk 0:02:27.7]} 36... Nc4 {[%clk 0:02:01.1]} 37.
Qc3 {[%clk 0:02:22.8]} 37... Re8 {[%clk 0:01:57.6]} 38. Nf3 {[%clk 0:02:11.2]}
38... Qe4 {[%clk 0:01:53.5]} 39. Ncd4 {[%clk 0:02:03.9]} 39... Qxg4 {[%clk
0:01:50]} 40. Nxb5 {[%clk 0:01:57.7]} 40... Rc8 {[%clk 0:01:40]} 41. Nbd4 {[%clk
0:01:39.9]} 41... Ne5 {[%clk 0:01:27.6]} 42. Qe3 {[%clk 0:01:30]} 42... Nxf3+
{[%clk 0:01:25.6]} 43. Nxf3 {[%clk 0:01:26.5]} 43... Qf5 {[%clk 0:01:22.2]} 44.
g3 {[%clk 0:01:22.8]} 44... Rb8 {[%clk 0:01:19.2]} 45. Kg2 {[%clk 0:01:21.8]}
45... Qf7 {[%clk 0:01:07.1]} 46. Qd4 {[%clk 0:01:18.4]} 46... Rf8 {[%clk
0:01:02.7]} 47. Ng5 {[%clk 0:01:10.8]} 47... Qb7+ {[%clk 0:01:00.8]} 48. Kh2
{[%clk 0:01:05.6]} 48... Qe7 {[%clk 0:00:51.6]} 49. Nh3 {[%clk 0:00:56.7]} 49...
Rd8 {[%clk 0:00:48.4]} 50. Qxa4 {[%clk 0:00:55.3]} 50... Qe2 {[%clk 0:00:44.3]}
51. Qb3+ {[%clk 0:00:50]} 51... Kg7 {[%clk 0:00:42.1]} 52. Kg2 {[%clk
0:00:48.8]} 52... Qe4+ {[%clk 0:00:39.8]} 53. Qf3 {[%clk 0:00:45.7]} 53... Qc2
{[%clk 0:00:38.2]} 54. Nf4 {[%clk 0:00:43.9]} 54... Re8 {[%clk 0:00:33.5]} 55.
b4 {[%clk 0:00:41.9]} 55... Qa4 {[%clk 0:00:30.2]} 56. Qc3+ {[%clk 0:00:39.6]}
56... Kg8 {[%clk 0:00:25.9]} 57. Qc4+ {[%clk 0:00:38.7]} 57... Kg7 {[%clk
0:00:25.5]} 58. Qd4+ {[%clk 0:00:37.9]} 58... Kg8 {[%clk 0:00:24.1]} 59. Qd5+
{[%clk 0:00:37.2]} 59... Kg7 {[%clk 0:00:23.5]} 60. Qd4+ {[%clk 0:00:33.9]}
60... Kg8 {[%clk 0:00:22.3]} 61. Qc3 {[%clk 0:00:33.3]} 61... Qa8+ {[%clk
0:00:20.5]} 62. Qf3 {[%clk 0:00:30.6]} 62... Qd8 {[%clk 0:00:18.5]} 63. Qb3+
{[%clk 0:00:27.4]} 63... Kg7 {[%clk 0:00:18]} 64. b5 {[%clk 0:00:26.5]} 64...
Re5 {[%clk 0:00:16.5]} 65. a4 {[%clk 0:00:24.7]} 65... Qa8+ {[%clk 0:00:15.2]}
66. Qf3 {[%clk 0:00:23.3]} 66... Re4 {[%clk 0:00:14.2]} 67. Ne6+ {[%clk
0:00:19.3]} 67... Kg8 {[%clk 0:00:13]} 68. Ng5 {[%clk 0:00:18.4]} 68... Re8
{[%clk 0:00:12.2]} 69. Qxa8 {[%clk 0:00:11]} 69... Rxa8 {[%clk 0:00:12.1]} 70.
Ne4 {[%clk 0:00:09.9]} 70... Rxa4 {[%clk 0:00:11.5]} 71. b6 {[%clk 0:00:08.7]}
71... Rb4 {[%clk 0:00:10.9]} 72. Nf6+ {[%clk 0:00:07]} 72... Kf7 {[%clk
0:00:09.8]} 73. Nd7 {[%clk 0:00:06.3]} 73... Ke7 {[%clk 0:00:09.5]} 74. Ne5
{[%clk 0:00:04.4]} 74... Rxb6 {[%clk 0:00:08.3]} 75. Ng4 {[%clk 0:00:03.5]}
75... h5 {[%clk 0:00:06.8]} 76. Ne3 {[%clk 0:00:03.4]} 76... Kf7 {[%clk
0:00:06.1]} 77. Nd5 {[%clk 0:00:02.8]} 77... Rd6 {[%clk 0:00:05.4]} 78. Nf4
{[%clk 0:00:02.3]} 78... Ra6 {[%clk 0:00:05.1]} 79. Nd5 {[%clk 0:00:01.5]} 79...
Ra1 {[%clk 0:00:04.9]} 80. Ne3 {[%clk 0:00:00.7]} 80... Kg7 {[%clk 0:00:04.8]}
0-1

[Event "Live Chess"]
[Site "Chess.com"]
[Date "2023.05.20"]
[Round "-"]
[White "MarkLim1"]
[Black "OSmith06"]
[Result "0-1"]
[WhiteElo "1677"]
[BlackElo "1678"]
[TimeControl "300"]
[EndTime "12:25:45 PDT"]
[Termination "OSmith06 won by resignation"]

1. d4 {[%clk 0:04:58.2]} 1... Nf6 {[%clk 0:04:57.8]} 2. Nf3 {[%clk 0:04:57.5]}
2... e6 {[%clk 0:04:53.9]} 3. e3 {[%clk 0:04:56.5]} 3... d5 {[%clk 0:04:47.3]}
4. Bd3 {[%clk 0:04:55.6]} 4... c5 {[%clk 0:04:45.5]} 5. b3 {[%clk 0:04:54.3]}
5... Nc6 {[%clk 0:04:38]} 6. O-O {[%clk 0:04:48.5]} 6... Bd6 {[%clk 0:04:34.8]}
7. Bb2 {[%clk 0:04:45.6]} 7... O-O {[%clk 0:04:32.9]} 8. a3 {[%clk 0:04:42]}
8... b6 {[%clk 0:04:30.3]} 9. Ne5 {[%clk 0:04:40.6]} 9... Qc7 {[%clk 0:04:25.6]}
10. f4 {[%clk 0:04:39.4]} 10... Ne4 {[%clk 0:04:23.3]} 11. Nd2 {[%clk
0:04:37.4]} 11... Nxd2 {[%clk 0:04:19.3]} 12. Qxd2 {[%clk 0:04:36.4]} 12... cxd4
{[%clk 0:04:17.3]} 13. exd4 {[%clk 0:04:35.4]} 13... f6 {[%clk 0:04:13.3]} 14.
Ng4 {[%clk 0:04:27]} 14... e5 {[%clk 0:03:59.9]} 15. fxe5 {[%clk 0:04:25.9]}
15... Bxg4 {[%clk 0:03:54.3]} 16. exd6 {[%clk 0:04:24.3]} 16... Qxd6 {[%clk
0:03:51.1]} 17. Rae1 {[%clk 0:04:18.6]} 17... Rae8 {[%clk 0:03:46.9]} 18. Qf2
{[%clk 0:04:13.1]} 18... Re7 {[%clk 0:03:34]} 19. Bb5 {[%clk 0:04:00.3]} 19...
Rfe8 {[%clk 0:03:27.2]} 20. Bd3 {[%clk 0:03:47.6]} 20... Rxe1 {[%clk 0:03:19.1]}
21. Rxe1 {[%clk 0:03:46.3]} 21... Rxe1+ {[%clk 0:03:16.1]} 22. Qxe1 {[%clk
0:03:45.4]} 22... Qe6 {[%clk 0:03:09.7]} 23. Qg3 {[%clk 0:03:39.2]} 23... Bf5
{[%clk 0:02:58.6]} 24. h3 {[%clk 0:03:28.8]} 24... Bxd3 {[%clk 0:02:43.7]} 25.
Qxd3 {[%clk 0:03:27.1]} 25... Qe1+ {[%clk 0:02:35]} 26. Kh2 {[%clk 0:03:25.5]}
26... Qe4 {[%clk 0:02:29.5]} 27. Qxe4 {[%clk 0:03:23.6]} 27... dxe4 {[%clk
0:02:29.4]} 28. Kg3 {[%clk 0:03:22.8]} 28... g5 {[%clk 0:02:23.6]} 29. h4 {[%clk
0:03:19.8]} 29... h6 {[%clk 0:02:20]} 30. hxg5 {[%clk 0:03:17.9]} 30... hxg5
{[%clk 0:02:19.9]} 31. Kg4 {[%clk 0:03:08.2]} 31... Kf7 {[%clk 0:02:13.5]} 32.
c3 {[%clk 0:03:04.3]} 32... Kg6 {[%clk 0:02:07.4]} 33. Bc1 {[%clk 0:02:58]}
33... f5+ {[%clk 0:02:05.5]} 34. Kg3 {[%clk 0:02:57.2]} 34... f4+ {[%clk
0:02:03]} 35. Kf2 {[%clk 0:02:55.9]} 35... Kf5 {[%clk 0:02:01]} 36. d5 {[%clk
0:02:53.6]} 36... Na5 {[%clk 0:01:55]} 37. b4 {[%clk 0:02:50.1]} 37... Nc4
{[%clk 0:01:52]} 38. g3 {[%clk 0:02:48.7]} 38... f3 {[%clk 0:01:46.8]} 39. a4
{[%clk 0:02:35.9]} 39... g4 {[%clk 0:01:44.3]} 40. Bf4 {[%clk 0:02:22.3]} 40...
Nb2 {[%clk 0:01:32.2]} 41. a5 {[%clk 0:02:17.3]} 41... Nd1+ {[%clk 0:01:21.9]}
42. Kf1 {[%clk 0:02:11.9]} 42... Nxc3 {[%clk 0:01:19.4]} 43. d6 {[%clk
0:02:10.2]} 43... Ke6 {[%clk 0:01:15.3]} 44. axb6 {[%clk 0:02:08.4]} 44... axb6
{[%clk 0:01:12.3]} 45. Be3 {[%clk 0:02:01.5]} 45... b5 {[%clk 0:01:11]} 46. Bc5
{[%clk 0:01:59.5]} 46... Na4 {[%clk 0:01:07.4]} 47. Kf2 {[%clk 0:01:55.5]} 47...
Nxc5 {[%clk 0:01:05.2]} 48. bxc5 {[%clk 0:01:54.7]} 48... b4 {[%clk 0:01:03.4]}
49. Ke3 {[%clk 0:01:52.2]} 49... b3 {[%clk 0:01:02.1]} 50. Kxe4 {[%clk
0:01:51.6]} 50... f2 {[%clk 0:01:01.2]} 51. Kf4 {[%clk 0:01:49]} 51... f1=Q+
{[%clk 0:01:00.2]} 52. Kxg4 {[%clk 0:01:48.9]} 52... Qc4+ {[%clk 0:00:59.1]} 0-1

[Event "Live Chess"]
[Site "Chess.com"]
[Date "2023.05.20"]
[Round "-"]
[White "flyingpuffins"]
[Black "Ayursworld"]
[Result "0-1"]
[WhiteElo "1959"]
[BlackElo "1372"]
[TimeControl "300"]
[EndTime "12:25:46 PDT"]
[Termination "Ayursworld won by resignation"]

1. e4 {[%clk 0:04:58.6]} 1... c5 {[%clk 0:04:57.3]} 2. Nf3 {[%clk 0:04:55.6]}
2... Nc6 {[%clk 0:04:55.1]} 3. Bb5 {[%clk 0:04:53.1]} 3... d6 {[%clk 0:04:52.4]}
4. O-O {[%clk 0:04:51.9]} 4... e5 {[%clk 0:04:50.8]} 5. Re1 {[%clk 0:04:50.8]}
5... Nf6 {[%clk 0:04:49.3]} 6. c3 {[%clk 0:04:50]} 6... Bg4 {[%clk 0:04:47.6]}
7. d4 {[%clk 0:04:45.3]} 7... cxd4 {[%clk 0:04:43.8]} 8. cxd4 {[%clk 0:04:44.4]}
8... exd4 {[%clk 0:04:42.6]} 9. h3 {[%clk 0:04:38]} 9... Bxf3 {[%clk 0:04:40.4]}
10. Qxf3 {[%clk 0:04:34.5]} 10... Be7 {[%clk 0:04:37.4]} 11. Na3 {[%clk
0:04:28.2]} 11... O-O {[%clk 0:04:34]} 12. Nc4 {[%clk 0:04:27.1]} 12... a6
{[%clk 0:04:31.6]} 13. Ba4 {[%clk 0:04:26.3]} 13... b5 {[%clk 0:04:29.2]} 14.
Bb3 {[%clk 0:04:24.6]} 14... bxc4 {[%clk 0:04:27.7]} 15. Bxc4 {[%clk 0:04:24.5]}
15... Qb6 {[%clk 0:04:25]} 16. b3 {[%clk 0:04:15.2]} 16... Ne5 {[%clk
0:04:23.2]} 17. Qg3 {[%clk 0:04:10.9]} 17... Nxc4 {[%clk 0:04:19.8]} 18. bxc4
{[%clk 0:04:10.1]} 18... g6 {[%clk 0:04:08.6]} 19. Bg5 {[%clk 0:04:05.3]} 19...
Qc5 {[%clk 0:04:01.6]} 20. Bh6 {[%clk 0:04:00.3]} 20... Rfe8 {[%clk 0:03:59]}
21. f4 {[%clk 0:03:58.8]} 21... d3+ {[%clk 0:03:55]} 22. Kh2 {[%clk 0:03:55.7]}
22... Nd7 {[%clk 0:03:50.9]} 23. Qxd3 {[%clk 0:03:50.4]} 23... Bh4 {[%clk
0:03:43.2]} 24. Re2 {[%clk 0:03:45.8]} 24... Ne5 {[%clk 0:03:29.8]} 25. fxe5
{[%clk 0:03:40]} 25... Qxe5+ {[%clk 0:03:27.7]} 26. Kh1 {[%clk 0:03:37.2]} 26...
Qxa1+ {[%clk 0:03:26.2]} 0-1

[Event "Live Chess"]
[Site "Chess.com"]
[Date "2023.05.20"]
[Round "-"]
[White "Man-Del-Brot"]
[Black "Doge_Dandolo"]
[Result "0-1"]
[WhiteElo "1173"]
[BlackElo "2026"]
[TimeControl "300"]
[EndTime "12:25:47 PDT"]
[Termination "Doge_Dandolo won on time"]

1. g4 {[%clk 0:04:55.2]} 1... c6 {[%clk 0:04:52.9]} 2. h4 {[%clk 0:04:50.8]}
2... d5 {[%clk 0:04:48.9]} 3. g5 {[%clk 0:04:49.7]} 3... Bf5 {[%clk 0:04:46.5]}
4. d3 {[%clk 0:04:48.1]} 4... h6 {[%clk 0:04:42.7]} 5. Bg2 {[%clk 0:04:46.3]}
5... e6 {[%clk 0:04:41.3]} 6. e4 {[%clk 0:04:33.8]} 6... dxe4 {[%clk 0:04:39.3]}
7. dxe4 {[%clk 0:04:16]} 7... Qxd1+ {[%clk 0:04:34.7]} 8. Kxd1 {[%clk
0:04:14.3]} 8... Bg4+ {[%clk 0:04:31.6]} 9. f3 {[%clk 0:04:12]} 9... Bh5 {[%clk
0:04:29.6]} 10. Nc3 {[%clk 0:04:08]} 10... Nd7 {[%clk 0:04:28.2]} 11. Be3 {[%clk
0:03:59.3]} 11... Bd6 {[%clk 0:04:23.1]} 12. Nh3 {[%clk 0:03:47.3]} 12... Ne5
{[%clk 0:04:17.3]} 13. Nf4 {[%clk 0:03:43.4]} 13... Bxf3+ {[%clk 0:04:15.5]} 14.
Bxf3 {[%clk 0:03:18.1]} 14... Nxf3 {[%clk 0:04:14.3]} 15. Ke2 {[%clk 0:03:06.9]}
15... Ne5 {[%clk 0:04:10.5]} 16. Rad1 {[%clk 0:03:00.6]} 16... O-O-O {[%clk
0:04:08.3]} 17. Nd3 {[%clk 0:02:50]} 17... Nc4 {[%clk 0:04:04.9]} 18. Bxa7
{[%clk 0:02:43]} 18... b6 {[%clk 0:04:01]} 19. b3 {[%clk 0:02:38]} 19... Kb7
{[%clk 0:03:59.1]} 20. bxc4 {[%clk 0:02:35.6]} 20... Kxa7 {[%clk 0:03:56.9]} 21.
e5 {[%clk 0:02:30.2]} 21... Bc7 {[%clk 0:03:54.6]} 22. Rhf1 {[%clk 0:02:22.2]}
22... hxg5 {[%clk 0:03:50.8]} 23. Rxf7 {[%clk 0:02:18.3]} 23... Kb7 {[%clk
0:03:47.6]} 24. Rxg7 {[%clk 0:02:15.7]} 24... gxh4 {[%clk 0:03:44.4]} 25. Nf4
{[%clk 0:02:12.1]} 25... h3 {[%clk 0:03:38.1]} 26. Nxe6 {[%clk 0:02:10.5]} 26...
Rc8 {[%clk 0:03:34.2]} 27. Ne4 {[%clk 0:02:04.9]} 27... Kb8 {[%clk 0:03:26.9]}
28. Nxc7 {[%clk 0:01:43]} 28... Rxc7 {[%clk 0:03:23.9]} 29. Rxc7 {[%clk
0:01:40.2]} 29... Kxc7 {[%clk 0:03:22.8]} 30. Nd6 {[%clk 0:01:38.6]} 30... Ne7
{[%clk 0:03:14.7]} 31. Nf7 {[%clk 0:01:35.2]} 31... Rh4 {[%clk 0:03:10]} 32. e6
{[%clk 0:01:29]} 32... h2 {[%clk 0:03:01.4]} 33. Rh1 {[%clk 0:01:24.8]} 33...
Re4+ {[%clk 0:03:00.3]} 34. Kf3 {[%clk 0:01:21.9]} 34... Rxe6 {[%clk 0:02:59.4]}
35. Rxh2 {[%clk 0:01:19.5]} 35... Rf6+ {[%clk 0:02:58.4]} 36. Ke4 {[%clk
0:01:16.8]} 36... Rxf7 {[%clk 0:02:57.6]} 37. Ke5 {[%clk 0:01:15.8]} 37... Nc8
{[%clk 0:02:41.3]} 38. Ke6 {[%clk 0:00:54.3]} 38... Re7+ {[%clk 0:02:38.1]} 39.
Kf6 {[%clk 0:00:53.1]} 39... Rd7 {[%clk 0:02:37.5]} 40. Rg2 {[%clk 0:00:42.5]}
40... c5 {[%clk 0:02:35.3]} 41. a3 {[%clk 0:00:39.7]} 41... Kc6 {[%clk
0:02:29.3]} 42. a4 {[%clk 0:00:38.2]} 42... Nd6 {[%clk 0:02:27]} 43. Re2 {[%clk
0:00:32]} 43... Nxc4 {[%clk 0:02:24.3]} 44. Re4 {[%clk 0:00:26.4]} 44... Nd2
{[%clk 0:02:11.6]} 45. Re2 {[%clk 0:00:19.8]} 45... Nb1 {[%clk 0:02:07.7]} 46.
Re6+ {[%clk 0:00:14.3]} 46... Rd6 {[%clk 0:02:06.2]} 47. Rxd6+ {[%clk
0:00:12.5]} 47... Kxd6 {[%clk 0:02:05.4]} 48. Kf5 {[%clk 0:00:10.2]} 48... Na3
{[%clk 0:02:04.3]} 49. c3 {[%clk 0:00:07]} 49... Nb1 {[%clk 0:02:03.3]} 50. c4
{[%clk 0:00:04.4]} 50... Nd2 {[%clk 0:02:01.6]} 51. Kf4 {[%clk 0:00:01.2]} 51...
Nxc4 {[%clk 0:02:01]} 52. Ke4 {[%clk 0:00:00.4]} 52... Nb2 {[%clk 0:02:00.1]}
0-1

[Event "Live Chess"]
[Site "Chess.com"]
[Date "2023.05.20"]
[Round "-"]
[White "Bob2pen"]
[Black "PiotrD11"]
[Result "1-0"]
[WhiteElo "1788"]
[BlackElo "1347"]
[TimeControl "300"]
[EndTime "12:25:48 PDT"]
[Termination "Bob2pen won by resignation"]

1. e4 {[%clk 0:04:56.4]} 1... d5 {[%clk 0:04:59.9]} 2. exd5 {[%clk 0:04:55.2]}
2... Nf6 {[%clk 0:04:59.4]} 3. Nf3 {[%clk 0:04:53.3]} 3... Nxd5 {[%clk
0:04:57.9]} 4. Nc3 {[%clk 0:04:52.2]} 4... Nxc3 {[%clk 0:04:56.6]} 5. bxc3
{[%clk 0:04:51.1]} 5... Nc6 {[%clk 0:04:53.9]} 6. Bc4 {[%clk 0:04:49.3]} 6... e5
{[%clk 0:04:49.2]} 7. O-O {[%clk 0:04:47.3]} 7... Be7 {[%clk 0:04:43.7]} 8. Re1
{[%clk 0:04:43.1]} 8... Bf6 {[%clk 0:04:40.2]} 9. d4 {[%clk 0:04:41.3]} 9... O-O
{[%clk 0:04:36.7]} 10. Ba3 {[%clk 0:04:16.5]} 10... Re8 {[%clk 0:04:30]} 11.
Nxe5 {[%clk 0:04:12.5]} 11... Nxe5 {[%clk 0:04:25.8]} 12. dxe5 {[%clk
0:04:11.5]} 12... Qxd1 {[%clk 0:04:23.3]} 13. Raxd1 {[%clk 0:04:10.2]} 13... Bg5
{[%clk 0:04:03.5]} 14. g3 {[%clk 0:04:03.1]} 14... Bg4 {[%clk 0:04:01.5]} 15.
Rb1 {[%clk 0:03:55.5]} 15... b6 {[%clk 0:03:51.4]} 16. f4 {[%clk 0:03:53.7]}
16... Bd8 {[%clk 0:03:43.6]} 17. Be2 {[%clk 0:03:49.4]} 17... Bf5 {[%clk
0:03:41.5]} 18. Bd3 {[%clk 0:03:43.4]} 18... Be6 {[%clk 0:03:39.6]} 19. Rbd1
{[%clk 0:03:41.3]} 19... Bxa2 {[%clk 0:03:29]} 20. Be4 {[%clk 0:03:23.7]} 20...
Rb8 {[%clk 0:03:28]} 21. Bc6 {[%clk 0:03:21.4]} 21... Re6 {[%clk 0:03:24.6]} 22.
Bd7 {[%clk 0:03:17.9]} 22... Rh6 {[%clk 0:03:16.7]} 23. f5 {[%clk 0:03:14]}
23... Bc4 {[%clk 0:03:09.1]} 24. e6 {[%clk 0:03:11.9]} 24... fxe6 {[%clk
0:03:04.9]} 25. fxe6 {[%clk 0:03:09.9]} 25... c5 {[%clk 0:02:43.8]} 26. e7
{[%clk 0:03:06.5]} 26... Bxe7 {[%clk 0:02:36.3]} 27. Rxe7 {[%clk 0:03:04.5]}
27... Rd8 {[%clk 0:02:35.5]} 28. Be6+ {[%clk 0:02:57.9]} 28... Kf8 {[%clk
0:02:31.4]} 29. Rf7+ {[%clk 0:02:53.1]} 29... Ke8 {[%clk 0:02:28.1]} 30. Rxd8+
{[%clk 0:02:51.2]} 30... Kxd8 {[%clk 0:02:27.1]} 31. Bxc4 {[%clk 0:02:50.1]} 1-0

[Event "Live Chess"]
[Site "Chess.com"]
[Date "2023.05.20"]
[Round "-"]
[White "SirEntrails"]
[Black "Demyan7777"]
[Result "0-1"]
[WhiteElo "537"]
[BlackElo "1676"]
[TimeControl "300"]
[EndTime "12:25:51 PDT"]
[Termination "Demyan7777 won by resignation"]

1. e4 {[%clk 0:04:58.7]} 1... c5 {[%clk 0:04:57]} 2. Nf3 {[%clk 0:04:54.6]} 2...
d6 {[%clk 0:04:55.8]} 3. Bc4 {[%clk 0:04:53.9]} 3... a6 {[%clk 0:04:53.8]} 4.
Ng5 {[%clk 0:04:53.1]} 4... e6 {[%clk 0:04:52.1]} 5. f4 {[%clk 0:04:48.3]} 5...
b5 {[%clk 0:04:49.8]} 6. Bb3 {[%clk 0:04:46.2]} 6... c4 {[%clk 0:04:48.6]} 7.
Bxc4 {[%clk 0:04:27.4]} 7... bxc4 {[%clk 0:04:44.9]} 8. f5 {[%clk 0:04:26.7]}
8... Qxg5 {[%clk 0:04:39.4]} 9. fxe6 {[%clk 0:04:20.3]} 9... Bxe6 {[%clk
0:04:33]} 10. O-O {[%clk 0:04:17.8]} 10... Nc6 {[%clk 0:04:20.2]} 11. Qf3 {[%clk
0:04:17]} 11... Nd4 {[%clk 0:04:14.4]} 12. Qe3 {[%clk 0:04:07.1]} 12... Qxe3+
{[%clk 0:04:10.9]} 13. dxe3 {[%clk 0:04:06.4]} 13... Nxc2 {[%clk 0:04:10.1]} 0-1

[Event "Live Chess"]
[Site "Chess.com"]
[Date "2023.05.20"]
[Round "-"]
[White "omisoc"]
[Black "onemoretime1975"]
[Result "1-0"]
[WhiteElo "2198"]
[BlackElo "1913"]
[TimeControl "300"]
[EndTime "12:25:56 PDT"]
[Termination "omisoc won by resignation"]

1. b3 {[%clk 0:04:57.7]} 1... e5 {[%clk 0:04:55.5]} 2. e3 {[%clk 0:04:54.5]}
2... g6 {[%clk 0:04:52.9]} 3. Bb2 {[%clk 0:04:52.8]} 3... Bg7 {[%clk 0:04:51.9]}
4. f4 {[%clk 0:04:51.1]} 4... d6 {[%clk 0:04:49.8]} 5. Nf3 {[%clk 0:04:50.1]}
5... Nc6 {[%clk 0:04:48.8]} 6. Bb5 {[%clk 0:04:48]} 6... f6 {[%clk 0:04:42.7]}
7. O-O {[%clk 0:04:46.4]} 7... a6 {[%clk 0:04:41.5]} 8. Bxc6+ {[%clk 0:04:43.5]}
8... bxc6 {[%clk 0:04:39.9]} 9. d4 {[%clk 0:04:39.2]} 9... e4 {[%clk 0:04:35.7]}
10. Nfd2 {[%clk 0:04:36.5]} 10... d5 {[%clk 0:04:31.8]} 11. c4 {[%clk
0:04:32.9]} 11... f5 {[%clk 0:04:25.8]} 12. Ba3 {[%clk 0:04:29.3]} 12... Bf8
{[%clk 0:04:22.4]} 13. Bxf8 {[%clk 0:04:24.5]} 13... Kxf8 {[%clk 0:04:21]} 14.
cxd5 {[%clk 0:04:18.5]} 14... cxd5 {[%clk 0:04:19.3]} 15. Nc3 {[%clk 0:04:16.4]}
15... Nf6 {[%clk 0:04:14.6]} 16. Rc1 {[%clk 0:04:14.9]} 16... Qd6 {[%clk
0:04:03.4]} 17. Na4 {[%clk 0:04:09.9]} 17... Ng4 {[%clk 0:04:00.1]} 18. Qe1
{[%clk 0:03:56.7]} 18... Bd7 {[%clk 0:03:55]} 19. h3 {[%clk 0:03:51.5]} 19...
Nf6 {[%clk 0:03:50.3]} 20. Nc5 {[%clk 0:03:48.7]} 20... Bb5 {[%clk 0:03:43.5]}
21. Rf2 {[%clk 0:03:46.6]} 21... Nd7 {[%clk 0:03:40.3]} 22. a4 {[%clk
0:03:38.3]} 22... Bc6 {[%clk 0:03:28.7]} 23. g4 {[%clk 0:03:27]} 23... h5 {[%clk
0:03:14.1]} 24. g5 {[%clk 0:03:19.4]} 24... Kg7 {[%clk 0:02:59.8]} 25. b4 {[%clk
0:03:00.9]} 25... Rhb8 {[%clk 0:02:56]} 26. Ndb3 {[%clk 0:02:58.8]} 26... Rb6
{[%clk 0:02:12.4]} 27. Rfc2 {[%clk 0:02:50.3]} 27... Rab8 {[%clk 0:02:02.4]} 28.
Na5 {[%clk 0:02:46]} 28... Rxb4 {[%clk 0:01:51.9]} 29. Nxc6 {[%clk 0:02:42.2]}
29... Nxc5 {[%clk 0:01:23.4]} 30. Nxb4 {[%clk 0:02:24.3]} 1-0

[Event "Live Chess"]
[Site "Chess.com"]
[Date "2023.05.20"]
[Round "-"]
[White "chessleanstrategist"]
[Black "AttackingSnowLeopard"]
[Result "0-1"]
[WhiteElo "400"]
[BlackElo "2018"]
[TimeControl "300"]
[EndTime "12:25:58 PDT"]
[Termination "AttackingSnowLeopard won by checkmate"]

1. c4 {[%clk 0:04:58.8]} 1... e5 {[%clk 0:04:58.6]} 2. g3 {[%clk 0:04:55.7]}
2... Nf6 {[%clk 0:04:56.8]} 3. Bg2 {[%clk 0:04:55.2]} 3... c6 {[%clk 0:04:56.3]}
4. Nc3 {[%clk 0:04:53]} 4... d5 {[%clk 0:04:55.8]} 5. cxd5 {[%clk 0:04:49.6]}
5... cxd5 {[%clk 0:04:55.7]} 6. d4 {[%clk 0:04:16]} 6... e4 {[%clk 0:04:50.3]}
7. e3 {[%clk 0:04:12.9]} 7... Nc6 {[%clk 0:04:41.5]} 8. Nge2 {[%clk 0:03:58.1]}
8... Bg4 {[%clk 0:04:36.2]} 9. Qc2 {[%clk 0:03:43.8]} 9... Be7 {[%clk
0:04:18.1]} 10. O-O {[%clk 0:03:42.1]} 10... Qd7 {[%clk 0:04:15.1]} 11. b3
{[%clk 0:03:13.2]} 11... O-O {[%clk 0:04:11.9]} 12. Bb2 {[%clk 0:03:11.9]} 12...
Bh3 {[%clk 0:04:11.2]} 13. Bxh3 {[%clk 0:03:02.2]} 13... Qxh3 {[%clk 0:04:08.1]}
14. Nf4 {[%clk 0:02:53]} 14... Qf5 {[%clk 0:03:59.8]} 15. a3 {[%clk 0:02:14.6]}
15... g5 {[%clk 0:03:58.1]} 16. Ng2 {[%clk 0:01:57.7]} 16... Qh3 {[%clk
0:03:48.6]} 17. b4 {[%clk 0:01:18.7]} 17... Ng4 {[%clk 0:03:35.6]} 18. Ne1
{[%clk 0:00:22.7]} 18... Qxh2# {[%clk 0:03:33.3]} 0-1